fUST/lending_fUST_20260226
["ID","MTS","AMOUNT","RATE_DAILY","PERIOD"]
[406716124,1772116244122,-500.0,0.0001876,2]
[406716126,1772116244131,-500.0,0.00018792,2]
[406716127,1772116244140,-100000.0,0.0001899,2]
[406716128,1772116244149,-2012.07,0.00019,2]
[406716129,1772116244158,-500.0,0.00019022,2]
[406716130,1772116244167,-500.0,0.00019183,2]
[406716131,1772116244176,-178.292,0.00019339,2]
[406716132,1772116244185,-744.71502317,0.00019417,2]
[406716133,1772116244195,-200.0,0.00019537,4]
[406716134,1772116244204,-500.0,0.00019595,2]
[406716135,1772116244213,-1421.1895713,0.00019865,2]
[406716136,1772116244223,-1040.599438,0.00019865,2]
[406716137,1772116244232,-9514.46962098,0.000199,2]
[406716139,1772116244241,-603492.76036998,0.0002,2]
[406716162,1772116244455,-105.88303053,0.0002,2]
[406716195,1772116244781,-500.0,0.00012899,2]
[406717593,1772116765632,-375.43694515,0.00011643,2]
[406717594,1772116765657,-624.56305485,0.00011761,2]
[406717595,1772116767746,-1000.0,0.00011761,2]
[406717596,1772116769853,-1000.0,0.00011761,2]
[406717597,1772116771831,-1000.0,0.00011761,2]
[406717598,1772116772902,-1000.0,0.00011761,2]
[406717599,1772116774528,-375.43694515,0.00011761,2]
[406717600,1772116774549,-191.99,0.00012,2]
[406717601,1772116779462,432.57305485,0.00012,2]
[406717602,1772116783884,-1000.0,0.00012,2]
[406717603,1772116785306,-1000.0,0.00012,2]
[406717604,1772116787681,-1000.0,0.00012,2]
[406717605,1772116788917,-1000.0,0.00012,2]
[406717606,1772116793588,-567.42694515,0.00012,2]
[406717607,1772116801542,432.57305485,0.00012,2]
[406717610,1772116806092,-1000.0,0.00012,2]
[406717611,1772116807870,-1000.0,0.00012,2]
[406717612,1772116810133,-1000.0,0.00012,2]
[406717613,1772116811243,-213.46425682,0.00012,2]
[406717614,1772116811266,-589.0,0.00012,2]
[406717615,1772116870463,2038.46,9.5e-05,2]
[406717617,1772117019911,-1000.0,0.00011714,2]
[406717618,1772117020989,-1000.0,0.00011714,2]
[406717619,1772117021803,-1000.0,0.00011714,2]
[406717620,1772117022432,-1000.0,0.00011714,2]
[406717621,1772117022482,-1000.0,0.00011714,2]
[406717622,1772117023406,-1000.0,0.00011714,2]
[406717623,1772117023457,-1000.0,0.00011714,2]
[406717624,1772117023519,-1000.0,0.00011714,2]
[406717625,1772117024224,-1000.0,0.00011714,2]
[406717626,1772117024276,-1000.0,0.00011714,2]
[406717627,1772117024526,-1000.0,0.00011714,2]
[406717628,1772117025464,-1000.0,0.00011714,2]
[406717629,1772117025503,-1000.0,0.00011714,2]
[406717630,1772117025802,-1000.0,0.00011714,2]
[406717631,1772117025917,-1000.0,0.00011714,2]
[406717632,1772117026255,-1000.0,0.00011714,2]
[406717633,1772117026645,-1000.0,0.00011714,2]
[406717634,1772117026897,-563.3706343,0.00011714,2]
[406717636,1772117248142,-208.67303027,0.00011996,2]
[406717637,1772117248164,-603.43738281,0.00011999,2]
[406717638,1772117349086,-596.56261719,0.00011999,2]
[406717639,1772117349108,-300.0,0.00011999,2]
[406717640,1772117349128,-2341.23703364,0.00012,2]
[406717641,1772117421874,4323.5407682,0.00011879,2]
[406717642,1772117429945,5000.0,0.00011879,2]
[406717673,1772117431945,-285.0,0.00011999,2]
[406717675,1772117431955,-109.47750578,0.00012,2]
[406717677,1772117431966,-675.42364712,0.00012,2]
[406717689,1772117432073,-941.21865034,0.00012,2]
[406717694,1772117432085,-410.71337545,0.00012,2]
[406717991,1772117438392,-10345.90587156,0.00012,2]
[406717992,1772117438404,-212.02391611,0.00012,2]
[406717993,1772117438414,-386.85646863,0.00012,2]
[406717994,1772117438424,-589.0,0.00012,2]
[406717995,1772117438433,-300.0,0.00012163,2]
[406717996,1772117438443,-300.0,0.00012239,2]
[406717997,1772117438452,-300.0,0.00012239,2]
[406717998,1772117438462,-626.39,0.00012329,2]
[406717999,1772117438472,-529.29262426,0.00012894,2]
[406718000,1772117438481,-500.0,0.00012894,2]
[406718001,1772117438491,-190.78490642,0.00012894,2]
[406718002,1772117438502,-500.0,0.00012894,2]
[406718003,1772117438514,-500.0,0.00012894,2]
[406718004,1772117438524,-500.0,0.00012894,2]
[406718005,1772117438534,-500.0,0.00012894,2]
[406718006,1772117438543,-500.0,0.00012894,2]
[406718007,1772117438552,-500.0,0.00012894,2]
[406718008,1772117438563,-500.0,0.00012894,2]
[406718009,1772117438572,-500.0,0.00012894,2]
[406718010,1772117438582,-166.00795645,0.00012894,2]
[406718011,1772117438592,-500.0,0.00012894,2]
[406718012,1772117438602,-500.0,0.00012894,2]
[406718013,1772117438611,-500.0,0.00012894,2]
[406718014,1772117438621,-500.0,0.00012894,2]
[406718015,1772117438632,-500.0,0.00012894,2]
[406718016,1772117438642,-500.0,0.00012894,2]
[406718017,1772117438652,-500.0,0.00012894,2]
[406718018,1772117438661,-500.0,0.00012894,2]
[406718019,1772117438670,-500.0,0.00012894,2]
[406718020,1772117438679,-500.0,0.00012894,2]
[406718021,1772117438689,-500.0,0.00012894,2]
[406718022,1772117438699,-500.0,0.00012894,2]
[406718023,1772117438709,-500.0,0.00012894,2]
[406718024,1772117438718,-500.0,0.00012894,2]
[406718025,1772117438728,-312.47177562,0.00012894,2]
[406718026,1772117438740,-187.52822438,0.00012894,2]
[406718027,1772117438750,-500.0,0.00012894,2]
[406718028,1772117438765,-500.0,0.00012894,2]
[406718029,1772117438774,-500.0,0.00012894,2]
[406718030,1772117438784,-500.0,0.00012894,2]
[406718031,1772117438793,-500.0,0.00012894,2]
[406718032,1772117438802,-500.0,0.00012894,2]
[406718033,1772117438811,-500.0,0.00012894,2]
[406718034,1772117438821,-500.0,0.00012894,2]
[406718035,1772117438831,-500.0,0.00012894,2]
[406718036,1772117438840,-500.0,0.00012894,2]
[406718037,1772117438855,-500.0,0.00012894,2]
[406718038,1772117438868,-500.0,0.00012894,2]
[406718039,1772117438878,-500.0,0.00012894,2]
[406718040,1772117438887,-500.0,0.00012894,2]
[406718041,1772117438898,-500.0,0.00012894,2]
[406718042,1772117438908,-500.0,0.00012894,2]
[406718043,1772117438918,-600.0,0.00012894,2]
[406718044,1772117438927,-500.0,0.00012894,2]
[406718045,1772117438940,-500.0,0.00012894,2]
[406718046,1772117438950,-500.0,0.00012894,2]
[406718047,1772117438960,-500.0,0.00012894,2]
[406718048,1772117438969,-500.0,0.00012894,2]
[406718049,1772117438979,-321.7823626,0.00012894,2]
[406718050,1772117439035,-178.2176374,0.00012894,2]
[406718051,1772117439044,-500.0,0.00012894,2]
[406718052,1772117439055,-500.0,0.00012894,2]
[406718053,1772117439064,-500.0,0.00012894,2]
[406718054,1772117439073,-500.0,0.00012894,2]
[406718055,1772117439082,-500.0,0.00012894,2]
[406718056,1772117439091,-500.0,0.00012894,2]
[406718057,1772117439100,-500.0,0.00012894,2]
[406718058,1772117439109,-500.0,0.00012894,2]
[406718059,1772117439118,-500.0,0.00012894,2]
[406718060,1772117439127,-500.0,0.00012894,2]
[406718061,1772117439138,-500.0,0.00012894,2]
[406718062,1772117439147,-500.0,0.00012894,2]
[406718063,1772117439156,-500.0,0.00012894,2]
[406718064,1772117439166,-500.0,0.00012894,2]
[406718065,1772117439176,-500.0,0.00012894,2]
[406718066,1772117439186,-500.0,0.00012894,2]
[406718067,1772117439196,-500.0,0.00012894,2]
[406718068,1772117439206,-500.0,0.00012894,2]
[406718069,1772117439216,-500.0,0.00012894,2]
[406718070,1772117439226,-500.0,0.00012894,2]
[406718071,1772117439235,-500.0,0.00012894,2]
[406718072,1772117439245,-500.0,0.00012894,2]
[406718073,1772117439257,-500.0,0.00012894,2]
[406718074,1772117439266,-500.0,0.00012894,2]
[406718075,1772117439276,-500.0,0.00012894,2]
[406718076,1772117439285,-500.0,0.00012894,2]
[406718077,1772117439295,-507.09944103,0.00012894,2]
[406718078,1772117439305,-500.0,0.00012894,2]
[406718079,1772117439316,-500.0,0.00012894,2]
[406718080,1772117439326,-500.0,0.00012894,2]
[406718081,1772117439337,-500.0,0.00012894,2]
[406718082,1772117439346,-500.0,0.00012894,2]
[406718083,1772117439355,-500.0,0.00012894,2]
[406718084,1772117439365,-500.0,0.00012894,2]
[406718085,1772117439374,-500.0,0.00012894,2]
[406718086,1772117439383,-500.0,0.00012894,2]
[406718087,1772117439393,-500.0,0.00012894,2]
[406718088,1772117439403,-500.0,0.00012894,2]
[406718089,1772117439412,-500.0,0.00012894,2]
[406718090,1772117439422,-500.0,0.00012894,2]
[406718091,1772117439432,-500.0,0.00012894,2]
[406718092,1772117439441,-500.0,0.00012894,2]
[406718093,1772117439450,-500.0,0.00012894,2]
[406718094,1772117439460,-519.9668182,0.00012894,2]
[406718095,1772117439470,-519.9668182,0.00012894,2]
[406718096,1772117439480,-519.9668182,0.00012894,2]
[406718097,1772117439489,-519.9668182,0.00012894,2]
[406718098,1772117439498,-519.9668182,0.00012894,2]
[406718099,1772117439509,-519.9668182,0.00012894,2]
[406718100,1772117439518,-519.9668182,0.00012894,2]
[406718101,1772117439528,-519.9668182,0.00012894,2]
[406718102,1772117439538,-519.9668182,0.00012894,2]
[406718103,1772117439548,-519.9668182,0.00012894,2]
[406718104,1772117439557,-519.9668182,0.00012894,2]
[406718105,1772117439566,-376.1186059,0.00012894,2]
[406718579,1772117445224,-143.8482123,0.00012894,2]
[406718581,1772117445234,-519.9668182,0.00012894,2]
[406718583,1772117445243,-519.9668182,0.00012894,2]
[406718586,1772117445252,-519.9668182,0.00012894,2]
[406718589,1772117445265,-519.9668182,0.00012894,2]
[406718591,1772117445274,-519.9668182,0.00012894,2]
[406718593,1772117445283,-519.9668182,0.00012894,2]
[406718595,1772117445293,-519.9668182,0.00012894,2]
[406718598,1772117445302,-519.9668182,0.00012894,2]
[406718599,1772117445311,-519.9668182,0.00012894,2]
[406718602,1772117445321,-519.9668182,0.00012894,2]
[406718604,1772117445330,-519.9668182,0.00012894,2]
[406718606,1772117445339,-519.9668182,0.00012894,2]
[406718607,1772117445348,-351.94126287,0.00012894,2]
[406718798,1772117469205,228.34261664,0.00011794,2]
[406718799,1772117469227,1622.48017406,0.00011794,2]
[406718805,1772117554158,168.9333,6.435e-05,2]
[406718925,1772118404207,1661.90991114,6.43e-05,2]
[406718926,1772118453120,-3334.58111547,0.00010662,2]
[406718927,1772118453148,-5000.0,0.0001077,2]
[406718928,1772118453170,-1200.0,0.00010988,2]
[406718929,1772118453191,-232.86034444,0.00011156,2]
[406718930,1772118453211,-300.0,0.00011323,2]
[406718931,1772118453231,-300.0,0.00011324,2]
[406718932,1772118453253,-579.0,0.00011325,2]
[406718933,1772118453272,-188.2334349,0.00011374,2]
[406718934,1772118453291,-300.0,0.00011437,2]
[406718935,1772118453310,-300.0,0.00011437,2]
[406718936,1772118453330,-300.0,0.00011437,2]
[406718937,1772118453353,-300.0,0.00011549,2]
[406718938,1772118453373,-500.0,0.00011775,2]
[406718939,1772118453394,-220.50483699,0.00011775,2]
[406718940,1772118453413,-536.52241789,0.00011775,2]
[406718941,1772118453434,-500.0,0.00011775,2]
[406718942,1772118453452,-500.0,0.00011775,2]
[406718943,1772118453474,-500.0,0.00011775,2]
[406718944,1772118453496,-500.0,0.00011775,2]
[406718945,1772118453515,-500.0,0.00011775,2]
[406718946,1772118453537,-500.0,0.00011775,2]
[406718947,1772118453559,-500.0,0.00011775,2]
[406718948,1772118453582,-500.0,0.00011775,2]
[406718949,1772118453605,-500.0,0.00011775,2]
[406718950,1772118453625,-295.98643207,0.00011775,2]
[406718951,1772118453650,-500.0,0.00011775,2]
[406718952,1772118453675,-350.0,0.00011775,2]
[406718953,1772118453697,-500.0,0.00011775,2]
[406718954,1772118453719,-500.0,0.00011775,2]
[406718955,1772118453745,-500.0,0.00011775,2]
[406718956,1772118453767,-500.0,0.00011775,2]
[406718957,1772118453788,-500.0,0.00011775,2]
[406718958,1772118453811,-500.0,0.00011775,2]
[406718959,1772118453833,-500.0,0.00011775,2]
[406718960,1772118453854,-500.0,0.00011775,2]
[406718961,1772118453877,-500.0,0.00011775,2]
[406718962,1772118453899,-500.0,0.00011775,2]
[406718963,1772118453921,-500.0,0.00011775,2]
[406718964,1772118453942,-500.0,0.00011775,2]
[406718965,1772118453966,-500.0,0.00011775,2]
[406718966,1772118453988,-500.0,0.00011775,2]
[406718967,1772118454010,-500.0,0.00011775,2]
[406718968,1772118454037,-500.0,0.00011775,2]
[406718969,1772118454060,-500.0,0.00011775,2]
[406718970,1772118454083,-500.0,0.00011775,2]
[406718971,1772118454111,-500.0,0.00011775,2]
[406718972,1772118454137,-500.0,0.00011775,2]
[406718973,1772118454162,-500.0,0.00011775,2]
[406718974,1772118454184,-500.0,0.00011775,2]
[406718975,1772118454207,-500.0,0.00011775,2]
[406718976,1772118454231,-500.0,0.00011775,2]
[406718977,1772118454255,-500.0,0.00011775,2]
[406718978,1772118454280,-500.0,0.00011775,2]
[406718979,1772118454303,-500.0,0.00011775,2]
[406718980,1772118454327,-500.0,0.00011775,2]
[406718981,1772118454349,-500.0,0.00011775,2]
[406718982,1772118454373,-500.0,0.00011775,2]
[406718983,1772118454396,-500.0,0.00011775,2]
[406718984,1772118454421,-500.0,0.00011775,2]
[406718985,1772118454444,-500.0,0.00011775,2]
[406718986,1772118454468,-500.0,0.00011775,2]
[406718987,1772118454492,-500.0,0.00011775,2]
[406718988,1772118454516,-500.0,0.00011775,2]
[406718989,1772118454541,-500.0,0.00011775,2]
[406718990,1772118454564,-500.0,0.00011775,2]
[406718991,1772118454585,-500.0,0.00011775,2]
[406718992,1772118454607,-500.0,0.00011775,2]
[406718993,1772118454629,-500.0,0.00011775,2]
[406718994,1772118454651,-500.0,0.00011775,2]
[406718995,1772118454674,-500.0,0.00011775,2]
[406718996,1772118454695,-500.0,0.00011775,2]
[406718997,1772118454720,-500.0,0.00011775,2]
[406718998,1772118454746,-500.0,0.00011775,2]
[406718999,1772118454768,-500.0,0.00011775,2]
[406719000,1772118454790,-500.0,0.00011775,2]
[406719001,1772118454814,-500.0,0.00011775,2]
[406719002,1772118454838,-500.0,0.00011775,2]
[406719003,1772118454862,-500.0,0.00011775,2]
[406719004,1772118454884,-500.0,0.00011775,2]
[406719005,1772118454911,-500.0,0.00011775,2]
[406719006,1772118454936,-500.0,0.00011775,2]
[406719007,1772118454958,-500.0,0.00011775,2]
[406719008,1772118454979,-500.0,0.00011775,2]
[406719009,1772118455001,-304.39754289,0.00011775,2]
[406719010,1772118455024,-500.0,0.00011775,2]
[406719011,1772118455048,-500.0,0.00011775,2]
[406719012,1772118455072,-500.0,0.00011775,2]
[406719013,1772118455097,-500.0,0.00011775,2]
[406719014,1772118455309,-500.0,0.00011775,2]
[406719015,1772118455336,-500.0,0.00011775,2]
[406719016,1772118455362,-500.0,0.00011775,2]
[406719017,1772118455385,-500.0,0.00011775,2]
[406719018,1772118455411,-500.0,0.00011775,2]
[406719019,1772118455435,-500.0,0.00011775,2]
[406719020,1772118455461,-500.0,0.00011775,2]
[406719021,1772118455485,-500.0,0.00011775,2]
[406719022,1772118455509,-236.74186803,0.00011775,2]
[406719023,1772118455534,-500.0,0.00011775,2]
[406719024,1772118455557,-500.0,0.00011775,2]
[406719025,1772118455583,-500.0,0.00011775,2]
[406719026,1772118455609,-500.0,0.00011775,2]
[406719027,1772118455633,-500.0,0.00011775,2]
[406719028,1772118455658,-500.0,0.00011775,2]
[406719029,1772118455680,-500.0,0.00011775,2]
[406719030,1772118455706,-500.0,0.00011775,2]
[406719031,1772118455730,-500.0,0.00011775,2]
[406719032,1772118455755,-500.0,0.00011775,2]
[406719033,1772118455782,-500.0,0.00011775,2]
[406719034,1772118455805,-500.0,0.00011775,2]
[406719035,1772118455830,-500.0,0.00011775,2]
[406719036,1772118455854,-500.0,0.00011775,2]
[406719037,1772118455879,-500.0,0.00011775,2]
[406719038,1772118455905,-500.0,0.00011775,2]
[406719039,1772118455929,-500.0,0.00011775,2]
[406719040,1772118455953,-500.0,0.00011775,2]
[406719041,1772118455979,-500.0,0.00011775,2]
[406719042,1772118456006,-500.0,0.00011775,2]
[406719043,1772118456028,-500.0,0.00011775,2]
[406719044,1772118456053,-500.0,0.00011775,2]
[406719045,1772118456075,-500.0,0.00011775,2]
[406719046,1772118456100,-500.0,0.00011775,2]
[406719047,1772118456123,-500.0,0.00011775,2]
[406719048,1772118456148,-500.0,0.00011775,2]
[406719049,1772118456173,-500.0,0.00011775,2]
[406719050,1772118456198,-500.0,0.00011775,2]
[406719051,1772118456224,-500.0,0.00011775,2]
[406719052,1772118456248,-500.0,0.00011775,2]
[406719053,1772118456272,-500.0,0.00011775,2]
[406719054,1772118456294,-500.0,0.00011775,2]
[406719055,1772118456318,-500.0,0.00011775,2]
[406719056,1772118456341,-500.0,0.00011775,2]
[406719057,1772118456362,-500.0,0.00011775,2]
[406719058,1772118456386,-500.0,0.00011775,2]
[406719059,1772118456407,-500.0,0.00011775,2]
[406719060,1772118456431,-500.0,0.00011775,2]
[406719061,1772118456452,-500.0,0.00011775,2]
[406719062,1772118456476,-500.0,0.00011775,2]
[406719063,1772118456501,-500.0,0.00011775,2]
[406719064,1772118456523,-247.2808934,0.00011775,2]
[406719065,1772118456546,-500.0,0.00011775,2]
[406719066,1772118456570,-500.0,0.00011775,2]
[406719067,1772118456593,-500.0,0.00011775,2]
[406719068,1772118456617,-500.0,0.00011775,2]
[406719069,1772118456641,-500.0,0.00011775,2]
[406719070,1772118456663,-500.0,0.00011775,2]
[406719071,1772118456686,-500.0,0.00011775,2]
[406719072,1772118456709,-500.0,0.00011775,2]
[406719073,1772118456731,-500.0,0.00011775,2]
[406719074,1772118456754,-500.0,0.00011775,2]
[406719075,1772118456782,-500.0,0.00011775,2]
[406719076,1772118456807,-500.0,0.00011775,2]
[406719077,1772118456831,-500.0,0.00011775,2]
[406719078,1772118456857,-500.0,0.00011775,2]
[406719079,1772118456882,-500.0,0.00011775,2]
[406719080,1772118456907,-500.0,0.00011775,2]
[406719081,1772118456930,-500.0,0.00011775,2]
[406719082,1772118456954,-500.0,0.00011775,2]
[406719083,1772118456976,-500.0,0.00011775,2]
[406719084,1772118456999,-500.0,0.00011775,2]
[406719085,1772118457024,-500.0,0.00011775,2]
[406719086,1772118457046,-500.0,0.00011775,2]
[406719087,1772118457070,-500.0,0.00011775,2]
[406719088,1772118457092,-500.0,0.00011775,2]
[406719089,1772118457116,-500.0,0.00011775,2]
[406719090,1772118457143,-500.0,0.00011775,2]
[406719091,1772118457167,-500.0,0.00011775,2]
[406719092,1772118457191,-500.0,0.00011775,2]
[406719093,1772118457215,-500.0,0.00011775,2]
[406719094,1772118457238,-500.0,0.00011775,2]
[406719095,1772118457261,-500.0,0.00011775,2]
[406719096,1772118457284,-500.0,0.00011775,2]
[406719097,1772118457307,-500.0,0.00011775,2]
[406719098,1772118457330,-500.0,0.00011775,2]
[406719099,1772118457352,-500.0,0.00011775,2]
[406719100,1772118457376,-500.0,0.00011775,2]
[406719101,1772118457398,-500.0,0.00011775,2]
[406719102,1772118457424,-500.0,0.00011775,2]
[406719103,1772118457447,-500.0,0.00011775,2]
[406719104,1772118457470,-491.72407152,0.00011775,2]
[406719105,1772118457493,-500.0,0.00011775,2]
[406719106,1772118457516,-500.0,0.00011775,2]
[406719107,1772118457540,-500.0,0.00011775,2]
[406719108,1772118457562,-500.0,0.00011775,2]
[406719109,1772118457585,-500.0,0.00011775,2]
[406719110,1772118457607,-500.0,0.00011775,2]
[406719111,1772118457631,-500.0,0.00011775,2]
[406719112,1772118457655,-500.0,0.00011775,2]
[406719113,1772118457681,-500.0,0.00011775,2]
[406719114,1772118457705,-500.0,0.00011775,2]
[406719115,1772118457730,-500.0,0.00011775,2]
[406719116,1772118457755,-500.0,0.00011775,2]
[406719117,1772118457778,-500.0,0.00011775,2]
[406719118,1772118457804,-500.0,0.00011775,2]
[406719119,1772118457829,-500.0,0.00011775,2]
[406719120,1772118457854,-500.0,0.00011775,2]
[406719121,1772118457880,-500.0,0.00011775,2]
[406719122,1772118457905,-500.0,0.00011775,2]
[406719123,1772118457931,-600.0,0.00011775,2]
[406719124,1772118457962,-500.0,0.00011775,2]
[406719125,1772118457989,-500.0,0.00011775,2]
[406719126,1772118458015,-500.0,0.00011775,2]
[406719127,1772118458040,-500.0,0.00011775,2]
[406719128,1772118458065,-400.0,0.00011775,2]
[406719129,1772118458091,-500.0,0.00011775,2]
[406719130,1772118458115,-500.0,0.00011775,2]
[406719131,1772118458142,-500.0,0.00011775,2]
[406719132,1772118458166,-500.0,0.00011775,2]
[406719133,1772118458191,-500.0,0.00011775,2]
[406719134,1772118458216,-500.0,0.00011775,2]
[406719135,1772118458239,-500.0,0.00011775,2]
[406719136,1772118458265,-500.0,0.00011775,2]
[406719137,1772118458289,-500.0,0.00011775,2]
[406719138,1772118458313,-500.0,0.00011775,2]
[406719139,1772118458509,-500.0,0.00011775,2]
[406719140,1772118458538,-500.0,0.00011775,2]
[406719141,1772118458562,-500.0,0.00011775,2]
[406719142,1772118458586,-500.0,0.00011775,2]
[406719143,1772118458610,-578.21674594,0.00011775,2]
[406719144,1772118458634,-500.0,0.00011775,2]
[406719145,1772118458658,-500.0,0.00011775,2]
[406719146,1772118458682,-500.0,0.00011775,2]
[406719147,1772118458705,-500.0,0.00011775,2]
[406719148,1772118458730,-500.0,0.00011775,2]
[406719149,1772118458756,-650.00000001,0.00011775,2]
[406719150,1772118458779,-500.0,0.00011775,2]
[406719151,1772118458802,-500.0,0.00011775,2]
[406719152,1772118458826,-500.0,0.00011775,2]
[406719153,1772118458848,-500.0,0.00011777,2]
[406719154,1772118458871,-50000.0,0.00011777,2]
[406719155,1772118458892,-200.0,0.00011781,2]
[406719156,1772118458916,-600.0,0.00012011,2]
[406719157,1772118458938,-1680.0,0.00012087,2]
[406719158,1772118458962,-734.38375263,0.00012119,2]
[406719159,1772118458984,-420.0,0.00012439,2]
[406719160,1772118459007,-420.0,0.00012456,2]
[406719161,1772118459027,-420.0,0.00012562,2]
[406719162,1772118459049,-420.0,0.00012562,2]
[406719163,1772118459070,-194.77632085,0.000128,2]
[406719164,1772118459094,-1875.62994056,0.00012867,2]
[406719165,1772118459118,-1261.39374794,0.00012874,3]
[406719166,1772118459146,-17503.7370563,0.00012894,2]
[406719167,1772118459168,-2761.95890581,0.000129,2]
[406719168,1772118459190,-1000.0,0.00012999,2]
[406719169,1772118459212,-1000.0,0.00013,7]
[406719170,1772118459233,-274.77520644,0.00013156,2]
[406719171,1772118459256,-720.0,0.00013212,2]
[406719172,1772118459276,-346.74939293,0.00013273,2]
[406719173,1772118459296,-564.72806545,0.00013273,2]
[406719174,1772118459317,-500.0,0.00013273,2]
[406719175,1772118459337,-500.0,0.00013273,2]
[406719176,1772118459357,-500.0,0.00013273,2]
[406719177,1772118459378,-2351.0,0.00013295,2]
[406719178,1772118459400,-2025.68471791,0.00013615,2]
[406719179,1772118459422,-587.0,0.00013664,2]
[406719180,1772118459442,-500.0,0.00013698,2]
[406719181,1772118459462,-500.0,0.00013698,2]
[406719182,1772118459482,-500.0,0.00013698,2]
[406719183,1772118459505,-500.0,0.00013698,2]
[406719184,1772118459530,-500.0,0.00013698,2]
[406719185,1772118459552,-500.0,0.00013698,2]
[406719186,1772118459574,-500.0,0.00013698,2]
[406719187,1772118459596,-500.0,0.00013698,2]
[406719188,1772118459618,-500.0,0.00013698,2]
[406719189,1772118459641,-343.56090452,0.00013698,2]
[406719190,1772118459663,-1000.0,0.00013699,2]
[406719191,1772118459684,-504.92646284,0.00013699,2]
[406719192,1772118459704,-500.0,0.00013699,2]
[406719193,1772118459724,-477.7350567,0.00013699,2]
[406719194,1772118459744,-166.49657751,0.00013699,2]
[406719195,1772118459767,-435.0,0.00013799,2]
[406719196,1772118459787,-587.0,0.00013799,2]
[406719197,1772118459811,-2761.95890577,0.00013916,2]
[406719198,1772118459834,-1000.0,0.00014,2]
[406719199,1772118459854,-185.07,0.00014048,2]
[406719200,1772118459875,-17503.7370563,0.00014298,2]
[406719201,1772118459899,-2175.73949534,0.00014364,2]
[406719202,1772118459922,-2179.49427129,0.00014453,3]
[406719203,1772118459947,-864.0,0.00014533,2]
[406719204,1772118459969,-3292.0,0.00014625,2]
[406719205,1772118459991,-1000.0,0.00015,2]
[406719206,1772118460012,-2080.05941448,0.00015,2]
[406719207,1772118460032,-1040.86637775,0.00015,2]
[406719208,1772118460053,-823.0,0.00015011,2]
[406719209,1772118460076,-316.69006844,0.00015156,2]
[406719210,1772118460098,-2341.85381299,0.00015243,3]
[406719211,1772118460119,-17503.7370563,0.00015702,2]
[406719212,1772118460145,-2325.79427278,0.0001586,2]
[406719213,1772118460167,-1000.0,0.00015986,2]
[406719214,1772118460191,-1000.0,0.00016,2]
[406719215,1772118460214,-4609.0,0.00016088,2]
[406719216,1772118460235,-2761.95890577,0.00016156,2]
[406719217,1772118460256,-205.90783016,0.00016327,2]
[406719218,1772118460277,-823.63132062,0.00016327,2]
[406719219,1772118460298,-1853.17047141,0.00016327,2]
[406719220,1772118460318,-547.13941195,0.00016327,2]
[406719221,1772118460339,-984.85094152,0.00016327,2]
[406719222,1772118460360,-3294.5252825,0.00016346,2]
[406719223,1772118460380,-151.0,0.00016488,2]
[406719224,1772118460401,-1152.0,0.0001649,2]
[406719225,1772118460421,-1750.84611825,0.00016529,2]